[Event "27th CRO-chT Women 2018"]
[Site "Biograd"]
[Date "2018.09.08"]
[Round "1.8"]
[White "Blazeka, Ivana"]
[Black "Muha, Magdalena"]
[Result "*"]
[ECO "C07"]
[WhiteElo "1610"]
[BlackElo "1839"]
[Annotator "NA"]
[PlyCount "67"]
[EventDate "2018.09.08"]
[EventType "team-tourn"]
[EventCountry "CRO"]
[SourceTitle "playchess.com"]
[Source "ChessBase"]
[SourceQuality "1"]
[TimeControl "40/5400+30:1800+30"]

1. e4 {[%emt 0:00:30]} e6 {[%emt 0:00:30]} 2. d4 {[%emt 0:00:00]} d5 {[%emt 0:00:00]} 3. Nd2 {[%emt 0:01:00]} c5 {[%emt 0:02:00]} 4. exd5 {[%emt 0:00:30]} Qxd5 {[%emt 0:00:30]} 5. Ngf3 {[%emt 0:00:30]} cxd4 {[%emt 0:04:30]} 6. Bc4 {[%emt 0:17:30]} Qd7 {[%emt 0:03:30] C07: French Tarrasch: 3...c5, 4 Ngf3 and 4 exd5 Qxd5} (6... Qd6 7. O-O Nf6 8. Nb3 Nc6 9. Nbxd4 Nxd4 10. Nxd4 a6 11. Re1 Qc7 12. Qe2 Bc5 13. c3 O-O 14. Bg5 b5 15. Bd3 Nd5 16. Qh5 g6 17. Qh4 Bb7 18. a4 bxa4 19. Rxa4 Rfe8 20. Nf3 {1-0 (29) Wei,Y (2729)-So,W (2780) chess.com INT 2018}) 7. O-O {[%emt 0:02:30]} a6 {[%emt 0:03:30]} 8. Nb3 {[%emt 0:01:30]} Nc6 {[%emt 0:01:30]} 9. Nbxd4 {[%emt 0:03:30]} Nxd4 {[%emt 0:06:30]} 10. Qxd4 {[%emt 0:08:30]} Qxd4 {[%emt 0:14:30]} 11. Nxd4 {[%emt 0:00:00]} Bc5 {[%emt 0:03:30]} 12. Nb3 {[%emt 0:05:00]} Ba7 {[%emt 0:07:30]} 13. Re1 {[%emt 0:06:30]} Nf6 {[%emt 0:04:30]} 14. Be3 {[%emt 0:04:30]} b5 $146 {[%emt 0:04:30]} ({Predecessor:} 14... Bxe3 15. Rxe3 Bd7 16. Nd4 Rc8 17. Bb3 Rc5 18. Rae1 Ke7 19. Re5 Rxe5 20. Rxe5 {½-½ (43) Castillo Martinez,A (2159)-Del Rio de Angelis,S (2498) Valencia 2002}) 15. Bd3 {[%emt 0:01:30]} Nd5 {[%emt 0:04:30]} 16. Bxa7 {[%emt 0:02:30]} Rxa7 {[%emt 0:00:30]} 17. Be4 {[%emt 0:03:30]} Nf6 {[%emt 0:03:30]} 18. Bc6+ {[%emt 0:02:30]} Bd7 {[%emt 0:00:30]} 19. Bxd7+ {[%emt 0:01:30]} Nxd7 {[%emt 0:01:30]} 20. Rad1 {[%emt 0:00:30]} Ke7 {[%emt 0:00:30]} 21. Nd4 {[%emt 0:08:30]} Rc8 {[%emt 0:03:30]} 22. Re2 {[%emt 0:02:30]} Rac7 {[%emt 0:09:30]} 23. c3 {[%emt 0:04:30]} Kf8 {[%emt 0:01:20]} 24. Red2 {[%emt 0:01:30]} Nb6 {[%emt 0:01:36]} 25. g3 $11 {[%emt 0:02:32]} Nd5 {[%emt 0:01:11]} 26. Kg2 {[%emt 0:03:18]} b4 {[%emt 0:01:54]} 27. cxb4 {[%emt 0:01:37]} Nxb4 {[%emt 0:00:16]} 28. a3 {[%emt 0:00:34]} Nd5 {[%emt 0:00:30]} 29. Kf3 {[%emt 0:03:08]} a5 {[%emt 0:06:04]} 30. Ke2 {[%emt 0:02:57]} a4 {[%emt 0:02:07]} 31. Kd3 {[%emt 0:02:45]} Rb7 {[%emt 0:01:54]} 32. Rc2 {[%emt 0:01:26]} Rcb8 {[%emt 0:00:36]} 33. Rb1 {[%emt 0:01:52]} Rb6 {[%emt 0:01:55]} 34. Kd2 {[%emt 0:01:59]} *

[Event "27th CRO-chT Women 2018"]
[Site "Biograd"]
[Date "2018.09.08"]
[Round "1.9"]
[White "Nikolova, Adriana"]
[Black "Krivec, Jana"]
[Result "1/2-1/2"]
[ECO "C75"]
[WhiteElo "2281"]
[BlackElo "2185"]
[Annotator "ChessBase"]
[PlyCount "54"]
[EventDate "2018.09.08"]
[EventType "team-tourn"]
[EventCountry "CRO"]
[SourceTitle "playchess.com"]
[Source "ChessBase"]
[SourceQuality "1"]
[TimeControl "40/5400+30:1800+30"]

1. e4 {[%emt 0:00:30]} e5 {[%emt 0:00:30]} 2. Nf3 {[%emt 0:00:00]} Nc6 {[%emt 0:00:00]} 3. Bb5 {[%emt 0:00:00]} a6 {[%emt 0:00:00]} 4. Ba4 {[%emt 0:00:00]} d6 {[%emt 0:00:30]} 5. c3 {[%emt 0:01:00]} Bd7 {[%emt 0:00:00]} 6. d4 {[%emt 0:00:30]} Nge7 {[%emt 0:01:00]} 7. Bg5 {[%emt 0:02:30]} h6 {[%emt 0:01:30]} 8. Bh4 {[%emt 0:06:30]} g5 {[%emt 0:06:30]} 9. Bg3 {[%emt 0:00:30]} Bg7 {[%emt 0:02:30]} 10. d5 {[%emt 0:04:30]} Nb8 {[%emt 0:00:30]} 11. Bxd7+ {[%emt 0:00:00]} Nxd7 {[%emt 0:00:00]} 12. h4 {[%emt 0:02:00]} Ng6 {[%emt 0:03:00]} 13. hxg5 {[%emt 0:07:30]} hxg5 {[%emt 0:00:30]} 14. Rxh8+ {[%emt 0:00:30]} Bxh8 {[%emt 0:00:00]} 15. Nbd2 {[%emt 0:04:30]} Qe7 {[%emt 0:12:00]} 16. Qc2 {[%emt 0:03:30]} g4 {[%emt 0:20:30]} 17. Nh2 {[%emt 0:10:30]} Nf4 {[%emt 0:01:30]} 18. Bxf4 {[%emt 0:07:30]} exf4 {[%emt 0:00:30]} 19. O-O-O {[%emt 0:01:30]} Qh4 {[%emt 0:00:30]} 20. Ndf1 {[%emt 0:00:30]} O-O-O {[%emt 0:12:30]} 21. Qe2 {[%emt 0:06:30]} Rg8 {[%emt 0:20:19]} 22. Re1 {[%emt 0:07:30]} Ne5 {[%emt 0:04:12]} 23. Kc2 {[%emt 0:04:30]} Qg5 {[%emt 0:05:25]} 24. g3 {[%emt 0:04:30]} Bf6 {[%emt 0:03:12]} 25. Qd2 {[%emt 0:08:18]} fxg3 {[%emt 0:00:00]} 26. Qxg5 {[%emt 0:06:29]} Bxg5 {[%emt 0:00:11]} 27. Nxg3 {[%emt 0:00:30]} Bf4 {[%emt 0:00:30]} 1/2-1/2

[Event "27th CRO-chT Women 2018"]
[Site "Biograd"]
[Date "2018.09.09"]
[Round "1.10"]
[White "Berke, Ana"]
[Black "Blazeka, Mihaela"]
[Result "1/2-1/2"]
[ECO "C90"]
[WhiteElo "2170"]
[BlackElo "2048"]
[Annotator "ChessBase"]
[PlyCount "81"]
[EventDate "2018.09.08"]
[EventType "team-tourn"]
[EventCountry "CRO"]
[SourceTitle "playchess.com"]
[Source "ChessBase"]
[SourceQuality "1"]
[TimeControl "40/5400+30:1800+30"]

1. e4 {[%emt 0:00:30]} e5 {[%emt 0:00:30]} 2. Nf3 {[%emt 0:00:00]} Nc6 {[%emt 0:00:30]} 3. Bb5 {[%emt 0:00:00]} a6 {[%emt 0:00:30]} 4. Ba4 {[%emt 0:00:00]} Nf6 {[%emt 0:00:00]} 5. O-O {[%emt 0:00:00]} Be7 {[%emt 0:00:00]} 6. Re1 {[%emt 0:00:30]} b5 {[%emt 0:00:30]} 7. Bb3 {[%emt 0:00:00]} d6 {[%emt 0:00:00]} 8. a4 {[%emt 0:00:00]} Bb7 {[%emt 0:04:00]} 9. d3 {[%emt 0:01:30]} Na5 {[%emt 0:02:30]} 10. Ba2 {[%emt 0:01:30]} c5 {[%emt 0:03:30]} 11. Nc3 {[%emt 0:02:30]} b4 {[%emt 0:14:30]} 12. Ne2 {[%emt 0:00:30]} Bc6 {[%emt 0:01:30]} 13. Ng3 {[%emt 0:02:30]} h6 {[%emt 0:05:30]} 14. Nf5 {[%emt 0:08:30]} Bf8 {[%emt 0:00:30]} 15. c3 {[%emt 0:05:30]} Rb8 {[%emt 0:02:30]} 16. Bd2 {[%emt 0:03:30]} b3 {[%emt 0:09:30]} 17. Bb1 {[%emt 0:00:30]} Qd7 {[%emt 0:01:30]} 18. c4 {[%emt 0:06:30]} Qc7 {[%emt 0:04:30]} 19. Ra3 {[%emt 0:12:30]} g6 {[%emt 0:11:30]} 20. Ne3 {[%emt 0:09:30]} Bg7 {[%emt 0:01:30]} 21. Nd5 {[%emt 0:06:30]} Nxd5 {[%emt 0:01:30]} 22. cxd5 {[%emt 0:07:30]} Bd7 {[%emt 0:00:30]} 23. Bc3 {[%emt 0:02:30]} O-O {[%emt 0:04:30]} 24. Qd2 {[%emt 0:02:30]} Nb7 {[%emt 0:00:30]} 25. a5 {[%emt 0:00:30]} Nd8 {[%emt 0:04:30]} 26. Qc1 {[%emt 0:02:30]} f5 {[%emt 0:01:30]} 27. Nd2 {[%emt 0:02:30]} fxe4 {[%emt 0:02:30]} 28. dxe4 {[%emt 0:00:30]} c4 {[%emt 0:00:30]} 29. Nf1 {[%emt 0:01:30]} Bb5 {[%emt 0:05:12]} 30. Bd2 {[%emt 0:03:27]} Qf7 {[%emt 0:00:32]} 31. Be3 {[%emt 0:01:11]} Nb7 {[%emt 0:00:18]} 32. f3 {[%emt 0:02:18]} Kh7 {[%emt 0:00:13]} 33. Qd2 {[%emt 0:00:47]} g5 {[%emt 0:02:58]} 34. Ng3 {[%emt 0:00:58]} Rbc8 {[%emt 0:03:31]} 35. Nf5 {[%emt 0:01:43]} Bf6 {[%emt 0:00:32]} 36. g4 {[%emt 0:01:36]} Qd7 {[%emt 0:02:54]} 37. Kg2 {[%emt 0:01:22]} Nc5 {[%emt 0:01:41]} 38. Bxc5 {[%emt 0:08:04]} Rxc5 {[%emt 0:00:05]} 39. h4 {[%emt 0:02:29]} Kg6 {[%emt 0:00:55]} 40. Rh1 {[%emt 0:00:00]} Rh8 {[%emt 0:00:00]} 41. Qc3 {[%emt 0:19:33]} 1/2-1/2

[Event "27th CRO-chT Women 2018"]
[Site "Biograd"]
[Date "2018.09.08"]
[Round "1.11"]
[White "Bogdanic, Katarina"]
[Black "Starcevic, Andrea"]
[Result "1-0"]
[ECO "A33"]
[WhiteElo "1921"]
[BlackElo "1893"]
[Annotator "NA"]
[PlyCount "81"]
[EventDate "2018.09.08"]
[EventType "team-tourn"]
[EventCountry "CRO"]
[SourceTitle "playchess.com"]
[Source "ChessBase"]
[SourceQuality "1"]
[TimeControl "40/5400+30:1800+30"]

1. c4 {[%emt 0:00:30]} c5 {[%emt 0:00:30]} 2. Nf3 {[%emt 0:00:00]} e6 {[%emt 0:00:00]} 3. g3 {[%emt 0:00:00]} Nf6 {[%emt 0:00:00]} 4. Bg2 {[%emt 0:00:30]} Be7 {[%emt 0:00:30]} 5. O-O {[%emt 0:00:00]} O-O {[%emt 0:01:30]} 6. Nc3 {[%emt 0:00:00]} Nc6 {[%emt 0:01:30]} 7. d4 {[%emt 0:00:30]} cxd4 {[%emt 0:01:30]} 8. Nxd4 {[%emt 0:01:30]} a6 {[%emt 0:03:30]} 9. Bf4 {[%emt 0:01:30]} Qb6 {[%emt 0:13:30]} 10. Nxc6 {[%emt 0:04:30]} bxc6 {[%emt 0:01:30]} 11. Na4 {[%emt 0:00:30]} Qa5 {[%emt 0:09:30]} 12. Qb3 {[%emt 0:14:30]} d5 {[%emt 0:09:30]} 13. Nb6 {[%emt 0:03:30]} Ra7 {[%emt 0:07:30]} 14. Nxc8 {[%emt 0:00:30]} Rxc8 {[%emt 0:00:00]} 15. cxd5 {[%emt 0:00:30]} cxd5 {[%emt 0:01:00]} 16. Rac1 {[%emt 0:00:30]} Rd8 {[%emt 0:02:30]} 17. Be3 {[%emt 0:03:30]} Raa8 {[%emt 0:16:30]} 18. Bb6 {[%emt 0:01:30]} Qb5 {[%emt 0:00:30]} 19. Qxb5 {[%emt 0:01:30]} axb5 {[%emt 0:00:30]} 20. Bxd8 {[%emt 0:00:00]} Rxd8 {[%emt 0:00:30]} 21. Rc7 {[%emt 0:00:00]} Bd6 {[%emt 0:02:30]} 22. Rb7 {[%emt 0:00:30]} b4 {[%emt 0:00:30]} 23. Rd1 {[%emt 0:01:30]} Kf8 {[%emt 0:01:30]} 24. e4 {[%emt 0:06:30]} dxe4 {[%emt 0:05:30]} 25. Rxb4 {[%emt 0:00:30]} Ke7 {[%emt 0:06:11]} 26. Rbd4 {[%emt 0:01:30]} e5 {[%emt 0:02:55]} 27. Rc4 {[%emt 0:00:30]} e3 {[%emt 0:01:08]} 28. fxe3 {[%emt 0:00:00]} Bc5 {[%emt 0:01:55]} 29. Rxd8 {[%emt 0:00:00]} Bxe3+ {[%emt 0:00:07]} 30. Kf1 {[%emt 0:00:30]} Kxd8 {[%emt 0:00:06]} 31. Ke2 {[%emt 0:00:30]} Bd4 {[%emt 0:00:24]} 32. b4 {[%emt 0:00:30]} Ng4 {[%emt 0:01:50]} 33. Be4 {[%emt 0:07:30]} Ne3 {[%emt 0:04:03]} 34. Rxd4+ {[%emt 0:09:30]} exd4 {[%emt 0:00:08]} 35. Kd3 {[%emt 0:00:00]} Nf1 {[%emt 0:03:02]} 36. a4 {[%emt 0:00:00]} Kc7 {[%emt 0:00:31]} 37. a5 {[%emt 0:00:30]} Nxh2 {[%emt 0:00:27]} 38. b5 {[%emt 0:00:00]} Ng4 {[%emt 0:00:11]} 39. Kxd4 {[%emt 0:00:00]} Nf6 {[%emt 0:01:02]} 40. b6+ {[%emt 0:00:00]} Kb8 {[%emt 0:00:00]} 41. Bc6 {[%emt 0:02:00]} 1-0

[Event "27th CRO-chT Women 2018"]
[Site "Biograd"]
[Date "2018.09.09"]
[Round "1.12"]
[White "Golub, Nikolina"]
[Black "Blazeka, Ivana"]
[Result "1-0"]
[ECO "E17"]
[WhiteElo "1839"]
[BlackElo "1610"]
[Annotator "NA"]
[PlyCount "61"]
[EventDate "2018.09.08"]
[EventType "team-tourn"]
[EventCountry "CRO"]
[SourceTitle "playchess.com"]
[Source "ChessBase"]
[SourceQuality "1"]
[TimeControl "40/5400+30:1800+30"]

1. d4 {[%emt 0:00:30]} d5 {[%emt 0:00:30]} 2. c4 {[%emt 0:00:00]} e6 {[%emt 0:00:00]} 3. Nf3 {[%emt 0:00:00]} Nf6 {[%emt 0:00:00]} 4. g3 {[%emt 0:00:00]} Be7 {[%emt 0:01:30]} 5. Bg2 {[%emt 0:00:00]} O-O {[%emt 0:02:30]} 6. O-O {[%emt 0:00:30]} Nbd7 {[%emt 0:03:30]} 7. Nbd2 {[%emt 0:01:30]} b6 {[%emt 0:04:30]} 8. b3 {[%emt 0:02:30]} Bb7 {[%emt 0:03:30]} 9. Bb2 {[%emt 0:01:30]} c5 {[%emt 0:02:30]} 10. e3 {[%emt 0:01:30]} Rc8 {[%emt 0:02:30]} 11. Qe2 {[%emt 0:01:30]} Rc7 {[%emt 0:07:30]} 12. Rac1 {[%emt 0:00:30]} dxc4 {[%emt 0:06:30]} 13. bxc4 {[%emt 0:10:30]} Ne4 {[%emt 0:08:30]} 14. Nxe4 {[%emt 0:09:30]} Bxe4 {[%emt 0:00:00]} 15. Rfd1 {[%emt 0:07:30]} Qa8 {[%emt 0:01:00]} 16. Ne1 {[%emt 0:09:30]} Bxg2 {[%emt 0:03:30]} 17. Nxg2 {[%emt 0:00:30]} Nf6 {[%emt 0:03:30]} 18. Nf4 {[%emt 0:03:30]} Rd8 {[%emt 0:02:30]} 19. d5 {[%emt 0:07:30]} exd5 {[%emt 0:03:30]} 20. Bxf6 {[%emt 0:00:30]} Bxf6 {[%emt 0:00:30]} 21. Nxd5 {[%emt 0:00:30]} Rc6 {[%emt 0:02:30]} 22. Rd3 {[%emt 0:11:30]} Re8 {[%emt 0:19:30]} 23. Rcd1 {[%emt 0:01:30]} Kf8 {[%emt 0:03:40]} 24. Qf3 {[%emt 0:01:30]} Qc8 {[%emt 0:02:42]} 25. Ra3 {[%emt 0:02:30]} a5 {[%emt 0:04:32]} 26. Rb3 {[%emt 0:01:30]} Bd8 {[%emt 0:01:06]} 27. Rbd3 {[%emt 0:02:30]} Qe6 {[%emt 0:01:08]} 28. Nf4 {[%emt 0:02:30]} Qf6 {[%emt 0:01:21]} 29. Rxd8 {[%emt 0:01:30]} g5 {[%emt 0:03:27]} 30. Rxe8+ {[%emt 0:00:30]} Kxe8 {[%emt 0:00:17]} 31. Qe4+ {[%emt 0:00:30]} 1-0

[Event "27th CRO-chT Women 2018"]
[Site "Biograd"]
[Date "2018.09.08"]
[Round "1.12"]
[White "Tomulic, Vesna"]
[Black "Golub, Nikolina"]
[Result "*"]
[ECO "C07"]
[WhiteElo "1837"]
[BlackElo "1839"]
[Annotator "NA"]
[PlyCount "35"]
[EventDate "2018.09.08"]
[EventType "team-tourn"]
[EventCountry "CRO"]
[SourceTitle "playchess.com"]
[Source "ChessBase"]
[SourceQuality "1"]
[TimeControl "40/5400+30:1800+30"]

1. e4 {[%emt 0:00:30]} e6 {[%emt 0:00:30]} 2. d4 {[%emt 0:00:00]} d5 {[%emt 0:00:00]} 3. Nd2 {[%emt 0:00:00]} c5 {[%emt 0:00:00]} 4. c3 {[%emt 0:00:30]} Nc6 {[%emt 0:00:00]} 5. exd5 {[%emt 0:13:30]} Qxd5 {[%emt 0:01:00]} 6. Ngf3 {[%emt 0:03:30]} cxd4 {[%emt 0:02:30]} 7. Bc4 {[%emt 0:03:30]} Qd8 {[%emt 0:03:30]} 8. Ne4 {[%emt 0:06:30]} dxc3 {[%emt 0:02:30]} 9. Qxd8+ {[%emt 0:06:30]} Kxd8 {[%emt 0:04:30]} 10. Bg5+ {[%emt 0:06:30]} f6 {[%emt 0:05:30]} 11. O-O-O+ {[%emt 0:02:30]} Kc7 {[%emt 0:02:30]} 12. Be3 {[%emt 0:03:30]} cxb2+ {[%emt 0:00:30]} 13. Kxb2 {[%emt 0:00:30]} b6 {[%emt 0:02:30]} 14. Nc3 {[%emt 0:05:30]} a6 {[%emt 0:02:30]} 15. Rhe1 {[%emt 0:10:30]} Kb7 {[%emt 0:08:30]} 16. Ne4 {[%emt 0:04:30]} Kc7 {[%emt 0:11:30]} 17. Nc3 {[%emt 0:01:30]} Bb4 {[%emt 0:07:30]} 18. Bf4+ {[%emt 0:05:30]} *

[Event "27th CRO-chT Women 2018"]
[Site "Biograd"]
[Date "2018.09.08"]
[Round "1.13"]
[White "Lakos, Nikoletta"]
[Black "Videnova, Iva"]
[Result "1/2-1/2"]
[ECO "B30"]
[WhiteElo "2258"]
[BlackElo "2336"]
[Annotator "NA"]
[PlyCount "69"]
[EventDate "2018.09.08"]
[EventType "team-tourn"]
[EventCountry "CRO"]
[SourceTitle "playchess.com"]
[Source "ChessBase"]
[SourceQuality "1"]
[TimeControl "40/5400+30:1800+30"]

1. e4 {[%emt 0:00:30]} c5 {[%emt 0:00:30]} 2. Nf3 {[%emt 0:00:00]} e6 {[%emt 0:00:00]} 3. Nc3 {[%emt 0:00:00]} Nc6 {[%emt 0:00:00]} 4. Bb5 {[%emt 0:00:30]} Nd4 {[%emt 0:00:30]} 5. O-O {[%emt 0:01:30]} a6 {[%emt 0:01:30]} 6. Bd3 {[%emt 0:00:30]} Nc6 {[%emt 0:02:30] B30: Sicilian: 2...Nc6 3 Bb5, lines without ...g6} 7. Re1 {[%emt 0:03:30]} (7. b3 Nge7 8. Bb2 Ng6 9. Re1 Be7 10. Nd5 exd5 11. exd5 O-O 12. dxc6 dxc6 13. Bxg6 hxg6 14. a4 {½-½ (81) Grischuk,A (2772)-Harikrishna,P (2744) Huaian 2017}) 7... d6 {[%emt 0:00:30]} 8. Bf1 {[%emt 0:08:30]} Nf6 {[%emt 0:01:30]} 9. d4 {[%emt 0:03:30]} cxd4 {[%emt 0:00:30]} 10. Nxd4 {[%emt 0:00:30]} Be7 {[%emt 0:04:30]} 11. Nxc6 {[%emt 0:28:30]} bxc6 {[%emt 0:00:30]} 12. e5 {[%emt 0:12:30]} dxe5 {[%emt 0:14:30]} 13. Qxd8+ {[%emt 0:01:30]} Bxd8 {[%emt 0:00:30]} 14. Rxe5 {[%emt 0:00:30]} Bc7 $146 {[%emt 0:06:30]} 15. Re1 {[%emt 0:03:30]} Nd5 {[%emt 0:02:30]} 16. Bd2 {[%emt 0:03:30]} O-O {[%emt 0:00:30]} 17. Na4 {[%emt 0:01:30]} Rb8 {[%emt 0:05:30]} 18. b3 {[%emt 0:09:49]} Rd8 {[%emt 0:07:30]} 19. Rad1 {[%emt 0:00:54]} h6 $16 {[%emt 0:03:30]} 20. c4 {[%emt 0:06:52]} Nb4 {[%emt 0:02:30]} 21. Bxb4 {[%emt 0:00:13]} Rxb4 {[%emt 0:02:30]} 22. g3 {[%emt 0:00:25]} a5 {[%emt 0:03:30]} 23. Bg2 {[%emt 0:01:01]} Bb7 {[%emt 0:17:30]} 24. Nc5 {[%emt 0:01:18]} Rb6 {[%emt 0:02:30]} 25. Rxd8+ {[%emt 0:01:56]} Bxd8 {[%emt 0:00:30]} 26. Rd1 {[%emt 0:01:00]} Be7 {[%emt 0:00:39]} 27. Nxb7 {[%emt 0:00:56]} Rxb7 {[%emt 0:00:21]} 28. Bxc6 {[%emt 0:00:08]} Rc7 {[%emt 0:01:57]} 29. Bb5 {[%emt 0:00:55]} Kf8 {[%emt 0:00:27]} 30. Kg2 {[%emt 0:01:20]} f5 {[%emt 0:01:22]} 31. h3 {[%emt 0:02:31]} Kf7 {[%emt 0:00:53]} 32. Rd7 {[%emt 0:01:58]} Rxd7 {[%emt 0:00:08]} 33. Bxd7 {[%emt 0:00:01]} Bc5 {[%emt 0:01:08]} 34. f4 {[%emt 0:01:11]} Kf6 {[%emt 0:00:29]} 35. Kf3 {[%emt 0:00:44]} 1/2-1/2

[Event "27th CRO-chT Women 2018"]
[Site "Biograd"]
[Date "2018.09.08"]
[Round "1.14"]
[White "Ivekovic, Tihana"]
[Black "Stadler, Brigita"]
[Result "1-0"]
[ECO "E99"]
[WhiteElo "2114"]
[BlackElo "2067"]
[Annotator "NA"]
[PlyCount "97"]
[EventDate "2018.09.08"]
[EventType "team-tourn"]
[EventCountry "CRO"]
[SourceTitle "playchess.com"]
[Source "ChessBase"]
[SourceQuality "1"]
[TimeControl "40/5400+30:1800+30"]

1. d4 {[%emt 0:00:30]} Nf6 {[%emt 0:00:30]} 2. c4 {[%emt 0:00:00]} g6 {[%emt 0:00:00]} 3. Nc3 {[%emt 0:00:00]} Bg7 {[%emt 0:00:00]} 4. e4 {[%emt 0:00:00]} d6 {[%emt 0:00:30]} 5. Nf3 {[%emt 0:00:00]} O-O {[%emt 0:00:30]} 6. Be2 {[%emt 0:00:30]} e5 {[%emt 0:00:30]} 7. O-O {[%emt 0:00:30]} Nc6 {[%emt 0:00:30]} 8. d5 {[%emt 0:00:00]} Ne7 {[%emt 0:00:00]} 9. Ne1 {[%emt 0:00:00]} Nd7 {[%emt 0:00:00]} 10. Bd2 {[%emt 0:00:30]} f5 {[%emt 0:00:30]} 11. Nd3 {[%emt 0:00:30]} Nf6 {[%emt 0:01:30]} 12. f3 {[%emt 0:00:30]} c6 {[%emt 0:06:30]} 13. Rc1 {[%emt 0:01:30]} c5 {[%emt 0:04:30]} 14. Rb1 {[%emt 0:01:30]} f4 {[%emt 0:03:30]} 15. b4 {[%emt 0:03:30]} b6 {[%emt 0:00:30]} 16. bxc5 {[%emt 0:00:30]} bxc5 {[%emt 0:00:30]} 17. Nb5 {[%emt 0:08:30] E99: King's Indian: Classical Main Line: 9 Ne1 Nd7 10 f3 f5} g5 {[%emt 0:07:30]} 18. Nf2 {[%emt 0:12:30]} Ng6 $146 {[%emt 0:01:30]} ({Predecessor (2):} 18... h5 19. h3 Ng6 20. Qe1 Qe7 21. Ba5 Ne8 22. Rb3 Rf7 23. Qd2 Bh6 24. Rfb1 g4 25. fxg4 {0-1 (44) Sosonko,G (2540)-Nijboer,F (2475) Amsterdam 1989}) 19. Qb3 {[%emt 0:07:30]} h5 {[%emt 0:06:30]} 20. h3 {[%emt 0:00:00]} Ne8 {[%emt 0:06:30]} 21. Qa3 {[%emt 0:12:00]} Rf7 {[%emt 0:07:30]} 22. Rb2 {[%emt 0:02:30]} Bf8 {[%emt 0:03:30]} 23. Rfb1 {[%emt 0:17:30]} Nh4 {[%emt 0:09:30]} 24. Be1 {[%emt 0:07:30]} Qf6 {[%emt 0:03:30]} 25. Qd3 {[%emt 0:01:30]} Qg6 {[%emt 0:04:30]} 26. Nc3 {[%emt 0:03:30]} Nf6 {[%emt 0:00:30]} 27. Rb8 {[%emt 0:01:17]} Rxb8 {[%emt 0:00:00]} 28. Rxb8 {[%emt 0:00:05]} Bd7 {[%emt 0:00:00]} 29. Nb5 $17 {[%emt 0:13:41]} ({White should try} 29. Nfd1 $11) 29... Kg7 {[%emt 0:02:30]} 30. Ra8 {[%emt 0:01:44]} g4 {[%emt 0:00:30]} 31. fxg4 {[%emt 0:01:02]} hxg4 {[%emt 0:00:30]} 32. Nxg4 {[%emt 0:02:16]} Bxg4 {[%emt 0:02:30]} 33. hxg4 {[%emt 0:01:28]} Qg5 {[%emt 0:01:30]} 34. Bxh4 {[%emt 0:00:25]} Qxh4 {[%emt 0:00:30]} 35. Rxa7 {[%emt 0:01:11]} Be7 {[%emt 0:00:00]} 36. Rxe7 {[%emt 0:01:23]} Rxe7 {[%emt 0:00:00]} 37. Nxd6 {[%emt 0:00:00]} Qe1+ {[%emt 0:00:30]} 38. Bf1 {[%emt 0:00:13]} Kg6 {[%emt 0:01:30]} 39. Nf5 {[%emt 0:00:47]} Ra7 {[%emt 0:01:30]} 40. d6 {[%emt 0:00:52]} Nxg4 {[%emt 0:01:30]} 41. Qf3 {[%emt 0:31:06]} Kg5 {[%emt 0:30:30]} 42. g3 Rxa2 43. gxf4+ {[%emt 0:00:00]} exf4 {[%emt 0:00:00]} 44. Ng7 {[%emt 0:00:00]} Qe3+ {[%emt 0:00:00]} 45. Qxe3 {[%emt 0:00:00]} fxe3 {[%emt 0:00:00]} 46. d7 {[%emt 0:00:00]} Ra1 {[%emt 0:00:00]} 47. d8=Q+ {[%emt 0:00:00]} Kg6 {[%emt 0:00:00]} 48. Kg2 {[%emt 0:00:00]} Ne5 {[%emt 0:00:00]} 49. Qd6+ {[%emt 0:00:00]} 1-0

[Event "27th CRO-chT Women 2018"]
[Site "Biograd"]
[Date "2018.09.08"]
[Round "1.15"]
[White "Sambolec, Andreja"]
[Black "Cvitan, Ena"]
[Result "0-1"]
[ECO "B12"]
[WhiteElo "1864"]
[BlackElo "2009"]
[Annotator "NA"]
[PlyCount "50"]
[EventDate "2018.09.08"]
[EventType "team-tourn"]
[EventCountry "CRO"]
[SourceTitle "playchess.com"]
[Source "ChessBase"]
[SourceQuality "1"]
[TimeControl "40/5400+30:1800+30"]

1. e4 {[%emt 0:00:30]} c6 {[%emt 0:00:30]} 2. d4 {[%emt 0:00:30]} d5 {[%emt 0:00:00]} 3. e5 {[%emt 0:00:30]} Bf5 {[%emt 0:00:00]} 4. Nf3 {[%emt 0:01:30]} e6 {[%emt 0:00:00]} 5. Be2 {[%emt 0:01:30]} Ne7 {[%emt 0:01:00]} 6. O-O {[%emt 0:00:30]} h6 {[%emt 0:00:30]} 7. c4 {[%emt 0:11:30] B12: Caro-Kann: Advance Variation} (7. Nbd2 Nd7 8. Nb3 Bg6 9. a4 a5 10. c3 Nf5 11. Ne1 Be7 12. Nd3 O-O 13. f4 b6 14. g4 Nh4 {1-0 (41) Rodshtein,M (2678)-Riazantsev,A (2662) Sochi 2018}) 7... dxc4 {[%emt 0:00:30]} 8. Bxc4 {[%emt 0:03:30]} Nd7 {[%emt 0:01:30]} 9. Nh4 $146 {[%emt 0:04:30]} ({Predecessor:} 9. Nc3 Nb6 10. Bb3 Ned5 11. Re1 Be7 12. Ne4 O-O 13. Ng3 Bg6 14. Bc2 Qe8 15. h4 {½-½ (45) Lavrov,M (2369)-Bocharov,D (2574) Minsk 2017}) 9... Nb6 {[%emt 0:11:30]} 10. Bb3 {[%emt 0:02:30]} Bh7 {[%emt 0:03:30]} 11. Nc3 {[%emt 0:09:30]} Ned5 {[%emt 0:02:30]} 12. Nf3 {[%emt 0:06:30]} Be7 {[%emt 0:02:30]} 13. a4 {[%emt 0:04:30]} Nb4 {[%emt 0:04:30]} 14. Be3 {[%emt 0:11:30]} a5 {[%emt 0:08:30]} 15. Nd2 {[%emt 0:07:30]} N6d5 {[%emt 0:13:30]} 16. Nde4 {[%emt 0:05:30]} O-O {[%emt 0:02:30]} 17. Qg4 {[%emt 0:05:30]} Kh8 {[%emt 0:01:30]} 18. Rad1 {[%emt 0:05:59]} Qb6 {[%emt 0:07:30]} 19. Nc5 {[%emt 0:06:38]} Nxe3 {[%emt 0:03:30]} 20. fxe3 {[%emt 0:00:14]} Bxc5 {[%emt 0:00:30]} 21. dxc5 {[%emt 0:00:47]} Qxc5 {[%emt 0:00:00]} 22. Qf4 {[%emt 0:01:04]} Nd3 {[%emt 0:02:00]} 23. Qg3 {[%emt 0:01:36]} Qxe5 {[%emt 0:02:30]} 24. Qf3 $19 {[%emt 0:06:25]} Nxb2 {[%emt 0:02:30]} 25. Rd7 {[%emt 0:00:10]} Qxc3 {[%emt 0:01:30]} 0-1